fUSD/lending_fUSD_20241227
["ID","MTS","AMOUNT","RATE_DAILY","PERIOD"]
[346773102,1735277020864,-500.0,0.00012798,2]
[346773103,1735277020898,-500.0,0.00012798,2]
[346773104,1735277020933,-737.73,0.00012798,2]
[346773105,1735277020968,-1467.85,0.00012798,2]
[346773106,1735277021007,-500.0,0.00012798,2]
[346773107,1735277021044,-500.0,0.00012798,2]
[346773108,1735277021080,-500.0,0.00012798,2]
[346773109,1735277021115,-736.94,0.00012798,2]
[346773110,1735277021151,-500.0,0.00012798,2]
[346773111,1735277021188,-500.0,0.00012798,2]
[346773112,1735277021224,-605.15,0.00012798,2]
[346773113,1735277021258,-500.0,0.00012798,2]
[346773114,1735277021294,-826.54,0.00012798,2]
[346773115,1735277021329,-848.83,0.00012798,2]
[346773116,1735277021363,-829.79,0.00012798,2]
[346773117,1735277021398,-500.0,0.00012798,2]
[346773118,1735277021435,-672.64,0.00012798,2]
[346773119,1735277021469,-833.66,0.00012798,2]
[346773120,1735277021503,-538.44,0.00012798,2]
[346773121,1735277021538,-3430.18,0.00012798,2]
[346773122,1735277021574,-500.0,0.00012798,2]
[346773123,1735277021609,-500.0,0.00012798,2]
[346773124,1735277021645,-593.0,0.00012798,2]
[346773125,1735277021680,-500.0,0.00012798,2]
[346773126,1735277021715,-500.0,0.00012798,2]
[346773127,1735277021752,-1007.96,0.00012798,2]
[346773128,1735277021787,-3370.97,0.00012798,2]
[346773129,1735277021823,-500.0,0.00012798,2]
[346773130,1735277021858,-520.73224677,0.00012798,2]
[346773131,1735277021893,-550.34,0.00012798,2]
[346773132,1735277021928,-500.0,0.00012798,2]
[346773133,1735277021965,-981.37,0.00012798,2]
[346773134,1735277022002,-500.0,0.00012798,2]
[346773135,1735277022039,-11921.7,0.00012798,2]
[346773136,1735277022074,-500.0,0.00012798,2]
[346773137,1735277022116,-4019.4,0.00012798,2]
[346773138,1735277022154,-509.8,0.00012798,2]
[346773139,1735277022196,-6335.01,0.00012798,2]
[346773140,1735277022236,-2012.0,0.00012798,2]
[346773141,1735277022276,-3483.76,0.00012798,2]
[346773142,1735277022334,-729.1,0.00012798,2]
[346773143,1735277022376,-3557.92,0.00012798,2]
[346773144,1735277022419,-1395.75,0.00012798,2]
[346773145,1735277022460,-7858.98,0.00012798,2]
[346773146,1735277022501,-1825.68,0.00012798,2]
[346773147,1735277022544,-2301.1,0.00012798,2]
[346773148,1735277022581,-700.61,0.00012798,2]
[346773149,1735277022620,-1372.91,0.00012798,2]
[346773150,1735277022657,-2804.86,0.00012798,2]
[346773151,1735277022695,-1800.13,0.00012798,2]
[346773152,1735277022733,-3027.27,0.00012798,2]
[346773153,1735277022770,-1953.58,0.00012799,2]
[346773154,1735277022806,-2965.9,0.00012799,2]
[346773155,1735277022842,-3859.74,0.00012799,2]
[346773156,1735277022877,-5399.54,0.00012799,2]
[346773157,1735277022913,-6219.05,0.00012799,2]
[346773158,1735277022949,-33977.07,0.00012799,2]
[346773159,1735277022985,-3476.89,0.00012799,2]
[346773160,1735277023022,-2129.23,0.00012799,2]
[346773161,1735277023295,-3797.11,0.00012799,2]
[346773162,1735277023349,-15112.94,0.00012799,2]
[346773163,1735277023386,-904.4,0.00012799,2]
[346773164,1735277023423,-3214.19,0.00012799,2]
[346773165,1735277023459,-2894.47,0.00012799,2]
[346773166,1735277023493,-5704.43,0.000128,2]
[346773167,1735277023526,-991.57,0.000128,2]
[346773168,1735277023560,-2355.12,0.000128,2]
[346773169,1735277023594,-2437.36,0.000128,2]
[346773170,1735277023627,-1599.29,0.000128,2]
[346773171,1735277023661,-4314.22,0.000128,2]
[346773172,1735277023694,-3626.38,0.000128,2]
[346773173,1735277023726,-1449.56,0.00012801,2]
[346773174,1735277023759,-2254.69,0.00012801,2]
[346773175,1735277023792,-1057.0,0.00012803,2]
[346773176,1735277023824,-500.0,0.00012876,2]
[346773177,1735277023857,-5290.37561288,0.00012897,2]
[346773178,1735277023890,-1961.4317511,0.00012897,2]
[346773179,1735277023923,-509.8,0.00012899,2]
[346773180,1735277023957,-509.8,0.00012899,2]
[346773181,1735277023990,-509.8,0.00012899,2]
[346773182,1735277024024,-509.8,0.00012899,2]
[346773183,1735277024057,-509.84,0.00012899,2]
[346773184,1735277024094,-1395.75,0.00012899,2]
[346773185,1735277024128,-1395.75,0.00012899,2]
[346773186,1735277024163,-1395.75,0.00012899,2]
[346773187,1735277024196,-1395.75,0.00012899,2]
[346773188,1735277024230,-1395.80225769,0.00012899,2]
[346773189,1735277024264,-1800.13,0.00012899,2]
[346773190,1735277024300,-1800.13,0.00012899,2]
[346773191,1735277024334,-1800.13,0.00012899,2]
[346773192,1735277024368,-1800.13,0.00012899,2]
[346773193,1735277024402,-1800.21355514,0.00012899,2]
[346773194,1735277024436,-5186.6755086,0.000129,2]
[346773195,1735277024468,-45413.91964757,0.000129,2]
[346773196,1735277024500,-1885.09592875,0.000129,2]
[346773197,1735277024533,-580.89920926,0.000129,2]
[346773198,1735277024568,-366.0,0.000129,2]
[346773199,1735277024600,-11571.35018731,0.0001298,2]
[346773200,1735277024633,-863.8495802,0.00012991,2]
[346773201,1735277024665,-571.9104309,0.00012991,2]
[346773202,1735277024697,-2176.6960849,0.00012991,2]
[346773203,1735277024734,-27006.1345055,0.00012996,3]
[346773204,1735277024769,-599.17474812,0.00012997,2]
[346773205,1735277024802,-520241.8000851,0.00012997,2]
[346773206,1735277024836,-20000.0,0.00012997,2]
[346773207,1735277024869,-20000.0,0.00012997,3]
[346773208,1735277024904,-20000.0,0.00012997,2]
[346773209,1735277024942,-165877.06603215,0.00013,2]
[346773210,1735277024984,-3209570.90042371,0.00013,2]
[346773211,1735277025027,-5080142.48440487,0.00013,2]
[346773212,1735277025065,-829629.0482914,0.00013,2]
[346773213,1735277025101,-1390887.95353863,0.00013,2]
[346773214,1735277025135,-22255.57716153,0.00013,2]
[346773215,1735277025169,-450.0,0.00013,2]
[346773216,1735277025843,500.0,0.00012797,2]
[346773217,1735277026663,500.0,0.00011975,2]
[346773218,1735277026860,500.0,0.00012249,2]
[346773219,1735277027016,500.0,0.00012523,2]
[346773220,1735277027462,196.013028,0.00012329,2]
[346773221,1735277027698,196.013028,0.00012329,2]
[346773222,1735277027770,196.013028,0.00012329,2]
[346773223,1735277027922,2281.85,0.00011973,2]
[346773224,1735277028076,196.013028,0.00012329,2]
[346773225,1735277028299,500.0,0.00012797,2]
[346773226,1735277028434,196.013028,0.00012329,2]
[346773227,1735277028495,2281.85,0.00012247,2]
[346773228,1735277028535,500.0,0.00011975,2]
[346773229,1735277028597,500.0,0.00012249,2]
[346773230,1735277028643,196.013028,0.00012329,2]
[346773231,1735277028698,500.0,0.00012523,2]
[346773232,1735277028741,2281.85,0.00012521,2]
[346773233,1735277028790,500.0,0.00012797,2]
[346773234,1735277028834,196.013028,0.00012329,2]
[346773235,1735277028903,2281.85,0.00012795,2]
[346773236,1735277028947,196.013028,0.00012329,2]
[346773237,1735277029030,196.013028,0.00012329,2]
[346773238,1735277029101,196.013028,0.00012329,2]
[346773239,1735277029151,196.013028,0.00012329,2]
[346773240,1735277029218,1623.99824137,0.00012424,2]
[346773241,1735277029347,196.013028,0.00012329,2]
[346773242,1735277029506,196.013028,0.00012329,2]
[346773243,1735277029640,196.013028,0.00012329,2]
[346773244,1735277029701,196.013028,0.00012329,2]
[346773245,1735277029753,151.0,0.00011973,2]
[346773246,1735277029793,196.013028,0.00012329,2]
[346773247,1735277030026,196.013028,0.00012329,2]
[346773248,1735277030172,196.013028,0.00012329,2]
[346773249,1735277030211,1091.27132744,0.00012426,2]
[346773250,1735277030256,196.013028,0.00012329,2]
[346773251,1735277030468,196.013026,0.00012329,2]
[346773252,1735277030783,595.0,0.00011973,2]
[346773253,1735277030823,595.0,0.00012247,2]
[346773254,1735277030868,595.0,0.00012521,2]
[346773255,1735277030908,595.0,0.00012795,2]
[346773256,1735277031039,153.0,0.00011556,2]
[346773257,1735277031085,153.0,0.00011556,2]
[346773258,1735277031135,963.12,0.00011974,2]
[346773259,1735277031492,153.0,0.00011556,2]
[346773260,1735277031539,153.0,0.00011556,2]
[346773261,1735277031578,963.12,0.00012248,2]
[346773262,1735277031623,1563.45245,0.00011974,2]
[346773263,1735277031666,153.0,0.00011556,2]
[346773264,1735277031715,963.12,0.00012522,2]
[346773265,1735277031767,153.0,0.00011556,2]
[346773266,1735277031829,963.12,0.00012796,2]
[346773267,1735277031898,153.0,0.00011556,2]
[346773268,1735277032036,153.0,0.00011556,2]
[346773269,1735277032140,153.0,0.00011556,2]
[346773270,1735277032199,153.0,0.00011556,2]
[346773271,1735277032248,153.0,0.00011556,2]
[346773272,1735277032303,153.0,0.00011556,2]
[346773273,1735277032359,153.0,0.00011556,2]
[346773274,1735277033271,151.0,0.00012329,2]
[346773275,1735277033330,151.0,0.00012329,2]
[346773276,1735277033376,500.0,0.00011973,2]
[346773277,1735277033415,153.0,0.00011554,2]
[346773278,1735277033485,152.78,0.00011976,2]
[346773279,1735277033522,500.0,0.00012247,2]
[346773280,1735277033561,153.0,0.00011554,2]
[346773281,1735277033601,151.0,0.00012329,2]
[346773282,1735277033639,153.0,0.00011554,2]
[346773283,1735277033677,500.0,0.00012521,2]
[346773284,1735277033794,508.07270096,0.00011975,2]
[346773285,1735277033833,153.0,0.00011554,2]
[346773286,1735277033943,151.0,0.00012329,2]
[346773287,1735277034061,500.0,0.00012795,2]
[346773288,1735277034501,617.14,0.00011973,2]
[346773289,1735277034544,617.14,0.00012247,2]
[346773290,1735277034583,153.0,0.00011554,2]
[346773291,1735277034640,617.14,0.00012521,2]
[346773292,1735277034738,153.0,0.00011554,2]
[346773293,1735277034777,617.14,0.00012795,2]
[346773294,1735277034818,500.0,0.00011973,2]
[346773295,1735277034856,153.0,0.00011554,2]
[346773296,1735277034905,153.0,0.00011554,2]
[346773297,1735277034947,500.0,0.00012247,2]
[346773298,1735277034994,153.0,0.00011554,2]
[346773299,1735277035033,500.0,0.00012521,2]
[346773300,1735277035071,153.0,0.00011554,2]
[346773301,1735277035116,161.34487813,0.00012795,2]
[346773302,1735277035776,2270.31,0.00011974,2]
[346773303,1735277036520,2270.31,0.00012248,2]
[346773304,1735277036578,2270.31,0.00012522,2]
[346773305,1735277036854,2270.31,0.00012796,2]
[346773306,1735277037208,12975.62142225,0.00012897,2]
[346773307,1735277037951,3453.57965568,0.0001226,2]
[346773308,1735277038251,52279.86764063,0.0001226,2]
[346773309,1735277038310,151.51,0.00012252,2]
[346773310,1735277038349,658.4,0.00011973,2]
[346773311,1735277038394,658.4,0.00012247,2]
[346773312,1735277038450,500.0,0.00011975,2]
[346773313,1735277038488,658.4,0.00012521,2]
[346773314,1735277038532,658.4,0.00012795,2]
[346773315,1735277038880,500.0,0.00012249,2]
[346773316,1735277038958,500.0,0.00012523,2]
[346773317,1735277039007,500.0,0.00012797,2]
[346773318,1735277039178,500.0,0.00011973,2]
[346773319,1735277039222,500.0,0.00012247,2]
[346773320,1735277039265,500.0,0.00012521,2]
[346773321,1735277039401,500.0,0.00012795,2]
[346773322,1735277040433,500.0,0.00011979,2]
[346773323,1735277040751,500.0,0.00012253,2]
[346773324,1735277040948,500.0,0.00012527,2]
[346773325,1735277041085,500.0,0.00012801,2]
[346773326,1735277041800,791.6,0.00011974,2]
[346773327,1735277041843,791.6,0.00012248,2]
[346773328,1735277042068,791.6,0.00012522,2]
[346773329,1735277042170,152.48,0.00012329,2]
[346773330,1735277042210,791.6,0.00012796,2]
[346773331,1735277042695,308.93469269,0.00011973,2]
[346773332,1735277043367,500.0,0.00011973,2]
[346773333,1735277043460,15621.2,0.00011973,2]
[346773334,1735277043507,500.0,0.00011975,2]
[346773335,1735277043576,500.0,0.00011975,2]
[346773336,1735277043620,500.0,0.00011977,2]
[346773337,1735277043752,500.0,0.00012247,2]
[346773338,1735277043792,500.0,0.00012248,2]
[346773339,1735277043916,500.0,0.00012249,2]
[346773340,1735277043960,15621.2,0.00012247,2]
[346773341,1735277044008,500.0,0.0001225,2]
[346773342,1735277044050,500.0,0.00012259,2]
[346773343,1735277044124,538.16411448,0.00012328,2]
[346773344,1735277044280,15621.2,0.00012521,2]
[346773345,1735277044332,15621.2,0.00012795,2]
[346773346,1735277044923,500.0,0.00011977,2]
[346773347,1735277045328,151.31,0.00012329,2]
[346773348,1735277045568,500.0,0.00012251,2]
[346773349,1735277045674,500.0,0.00012525,2]
[346773350,1735277045800,318.03287866,0.00012799,2]
[346773351,1735277045847,881.32,0.00011973,2]
[346773352,1735277045893,881.32,0.00012247,2]
[346773353,1735277045937,881.32,0.00012521,2]
[346773354,1735277046070,881.32,0.00012795,2]
[346773355,1735277046739,3075.26,0.00011975,2]
[346773356,1735277046905,762.8,0.00011973,2]
[346773357,1735277046980,762.8,0.00012247,2]
[346773358,1735277047020,3075.26,0.00012249,2]
[346773359,1735277047069,762.8,0.00012521,2]
[346773360,1735277047124,762.8,0.00012795,2]
[346773361,1735277047163,3075.26,0.00012523,2]
[346773362,1735277047289,3075.26,0.00012797,2]
[346773363,1735277047383,3886.91,0.00011976,2]
[346773364,1735277047535,3886.91,0.0001225,2]
[346773365,1735277047685,325.98780845,0.000129,2]
[346773366,1735277047731,3886.91,0.00012524,2]
[346773367,1735277047971,3886.91,0.00012798,2]
[346773368,1735277048274,151.48,0.00012521,2]
[346773369,1735277049051,500.0,0.00011974,2]
[346773370,1735277049396,500.0,0.00012248,2]
[346773371,1735277050061,500.0,0.00012522,2]
[346773372,1735277050322,500.0,0.00012796,2]
[346773373,1735277050882,1457.59,0.00011976,2]
[346773374,1735277050921,501.75235562,0.00011973,2]
[346773375,1735277051052,1457.59,0.0001225,2]
[346773376,1735277051124,1457.59,0.00012524,2]
[346773377,1735277051406,500.0,0.00011973,2]
[346773378,1735277051448,500.0,0.00012247,2]
[346773379,1735277051489,1457.59,0.00012798,2]
[346773380,1735277051529,500.0,0.00012521,2]
[346773381,1735277051575,500.0,0.00012795,2]
[346773382,1735277052163,500.0,0.00011974,2]
[346773383,1735277052212,500.0,0.00012248,2]
[346773384,1735277052457,345.48771747,0.00012522,2]
[346773385,1735277052499,150.1,0.00012795,2]
[346773386,1735277053129,500.0,0.00011973,2]
[346773387,1735277053167,500.0,0.00012247,2]
[346773388,1735277053207,562.68775142,0.00012521,2]
[346773389,1735277053809,502.71923552,0.00011974,2]
[346773390,1735277054099,250.0,0.00011443,2]
[346773391,1735277054408,500.0,0.00011973,2]
[346773392,1735277054527,500.0,0.00012247,2]
[346773393,1735277054570,496.39126823,0.00012521,2]
[346773394,1735277054733,152.14,0.00012797,2]
[346773395,1735277056016,500.0,0.00011973,2]
[346773396,1735277056063,500.0,0.00012247,2]
[346773397,1735277056106,500.0,0.00012521,2]
[346773398,1735277056146,500.0,0.00012795,2]
[346773399,1735277056201,994.439116,0.00011973,2]
[346773400,1735277056253,994.439116,0.00012247,2]
[346773401,1735277056361,500.0,0.00011974,2]
[346773402,1735277056434,994.439116,0.00012521,2]
[346773403,1735277056478,500.0,0.00012248,2]
[346773404,1735277056522,994.439116,0.00012795,2]
[346773405,1735277056561,500.0,0.00012522,2]
[346773406,1735277056947,500.0,0.00012796,2]
[346773407,1735277057478,500.0,0.00011973,2]
[346773408,1735277057524,500.0,0.00012247,2]
[346773409,1735277057564,855.69,0.00011973,2]
[346773410,1735277057618,500.0,0.00012521,2]
[346773411,1735277057661,500.0,0.00012795,2]
[346773412,1735277057831,1969.98,0.00011973,2]
[346773413,1735277057898,855.69,0.00012247,2]
[346773414,1735277057951,1969.98,0.00012247,2]
[346773415,1735277058178,1969.98,0.00012521,2]
[346773416,1735277058241,1969.98,0.00012795,2]
[346773417,1735277058343,855.69,0.00012521,2]
[346773418,1735277058505,855.69,0.00012795,2]
[346773419,1735277059068,500.0,0.00011973,2]
[346773420,1735277059118,500.0,0.00012247,2]
[346773421,1735277059177,500.0,0.00012521,2]
[346773422,1735277059275,500.0,0.00011973,2]
[346773423,1735277059339,500.0,0.00012247,2]
[346773424,1735277059395,500.0,0.00012521,2]
[346773425,1735277059535,500.0,0.00012795,2]
[346773426,1735277059602,500.0,0.00012795,2]
[346773427,1735277059979,923.84,0.00011975,2]
[346773428,1735277060115,923.84,0.00012249,2]
[346773429,1735277060211,923.84,0.00012523,2]
[346773430,1735277060264,923.84,0.00012797,2]
[346773431,1735277060857,6643.17,0.00011975,2]
[346773432,1735277060930,6643.17,0.00012249,2]
[346773433,1735277061400,6643.17,0.00012523,2]
[346773434,1735277061454,28314.22,0.00011976,2]
[346773435,1735277061515,6643.17,0.00012797,2]
[346773436,1735277061654,28314.22,0.0001225,2]
[346773437,1735277061746,500.0,0.00011973,2]
[346773438,1735277062167,28314.22,0.00012524,2]
[346773439,1735277062708,500.0,0.00012247,2]
[346773440,1735277063145,500.0,0.00012521,2]
[346773441,1735277063361,1202.52,0.00011974,2]
[346773442,1735277063648,1202.52,0.00012248,2]
[346773443,1735277063899,1202.52,0.00012522,2]
[346773444,1735277064164,1202.52,0.00012796,2]
[346773445,1735277064221,28314.22,0.00012798,2]
[346773446,1735277064730,500.0,0.00012795,2]
[346773447,1735277065707,1497.13,0.00011975,2]
[346773448,1735277065969,1497.13,0.00012249,2]
[346773449,1735277066218,1497.13,0.00012523,2]
[346773450,1735277066479,1497.13,0.00012797,2]
[346773451,1735277067258,1774.36,0.00011976,2]
[346773452,1735277067689,500.0,0.00011973,2]
[346773453,1735277068669,1774.36,0.0001225,2]
[346773454,1735277069201,500.0,0.00012247,2]
[346773455,1735277070117,1774.36,0.00012524,2]
[346773456,1735277070162,500.0,0.00012521,2]
[346773457,1735277070451,500.0,0.00012795,2]
[346773458,1735277070740,1774.36,0.00012798,2]
[346773459,1735277072310,805.09,0.00011973,2]
[346773460,1735277072549,805.09,0.00012247,2]
[346773461,1735277072604,825.41,0.00011973,2]
[346773462,1735277072782,2708.22,0.00011973,2]
[346773463,1735277072822,1646.01,0.00011973,2]
[346773464,1735277072863,805.09,0.00012521,2]
[346773465,1735277072905,825.41,0.00012247,2]
[346773466,1735277073042,1646.01,0.00012247,2]
[346773467,1735277073094,825.41,0.00012521,2]
[346773468,1735277073219,805.09,0.00012795,2]
[346773469,1735277073292,1646.01,0.00012521,2]
[346773470,1735277073338,2708.22,0.00012247,2]
[346773471,1735277073609,825.41,0.00012795,2]
[346773472,1735277073680,1646.01,0.00012795,2]
[346773473,1735277075149,2708.22,0.00012521,2]
[346773474,1735277076048,2708.22,0.00012795,2]
[346773475,1735277078099,2500.0,0.00013,2]
[346773476,1735277080857,500.0,0.00011973,2]
[346773477,1735277081139,500.0,0.00012247,2]
[346773478,1735277081179,2138.81,0.00011973,2]
[346773479,1735277081226,500.0,0.00011973,2]
[346773480,1735277081340,744.06,0.00011973,2]
[346773481,1735277081460,500.0,0.00012521,2]
[346773482,1735277081513,2138.81,0.00012247,2]
[346773483,1735277081549,2500.0,0.0002,120]
[346773484,1735277081595,500.0,0.00012247,2]
[346773485,1735277081640,744.06,0.00012247,2]
[346773486,1735277081680,500.0,0.00012795,2]
[346773487,1735277081718,2138.81,0.00012521,2]
[346773488,1735277081760,1005.08,0.00011975,2]
[346773489,1735277081796,500.0,0.00012521,2]
[346773490,1735277081886,744.06,0.00012521,2]
[346773491,1735277081969,1005.08,0.00012249,2]
[346773492,1735277082010,500.0,0.00012795,2]
[346773493,1735277082057,1466.56,0.00011973,2]
[346773494,1735277082124,744.06,0.00012795,2]
[346773495,1735277082209,1005.08,0.00012523,2]
[346773496,1735277082252,2138.81,0.00012795,2]
[346773497,1735277082291,1466.56,0.00012247,2]
[346773498,1735277082949,1005.08,0.00012797,2]
[346773499,1735277083053,1466.56,0.00012521,2]
[346773500,1735277083198,1466.56,0.00012795,2]
[346773501,1735277083963,842.61,0.00011973,2]
[346773502,1735277084037,500.0,0.00011973,2]
[346773503,1735277084143,547.89095963,0.00011974,2]
[346773504,1735277084194,500.0,0.00011973,2]
[346773505,1735277084253,842.61,0.00012247,2]
[346773506,1735277084311,500.0,0.00012247,2]
[346773507,1735277084415,500.0,0.00012247,2]
[346773508,1735277084464,1932.44,0.00011974,2]
[346773509,1735277084514,842.61,0.00012521,2]
[346773510,1735277084554,500.0,0.00012521,2]
[346773511,1735277084667,500.0,0.00012521,2]
[346773512,1735277084757,500.0,0.00012795,2]
[346773513,1735277084796,842.61,0.00012795,2]
[346773514,1735277085099,1932.44,0.00012248,2]
[346773515,1735277085241,513.71544386,0.00012795,2]
[346773516,1735277085307,909.9871695,0.00012997,2]
[346773517,1735277086237,1932.44,0.00012522,2]
[346773518,1735277087028,500.0,0.00011973,2]
[346773519,1735277087219,1932.44,0.00012796,2]
[346773520,1735277087260,1088.8,0.00011973,2]
[346773521,1735277087302,500.0,0.00012247,2]
[346773522,1735277087481,1088.8,0.00012247,2]
[346773523,1735277087529,500.0,0.00012521,2]
[346773524,1735277087857,1088.8,0.00012521,2]
[346773525,1735277087900,500.0,0.00012795,2]
[346773526,1735277087979,1088.8,0.00012795,2]
[346773527,1735277088698,501.43531573,0.00011974,2]
[346773528,1735277089128,153.0,0.00011536,2]
[346773529,1735277089263,3825.03,0.00011973,2]
[346773530,1735277089347,153.0,0.00011536,2]
[346773531,1735277089408,1182.909902,0.00011973,2]
[346773532,1735277089610,153.0,0.00011536,2]
[346773533,1735277089743,1182.909902,0.00012247,2]
[346773534,1735277089798,3825.03,0.00012247,2]
[346773535,1735277089838,153.0,0.00011536,2]
[346773536,1735277090014,153.0,0.00011536,2]
[346773537,1735277090058,1182.909902,0.00012521,2]
[346773538,1735277090165,2945.68,0.00011973,2]
[346773539,1735277090360,153.0,0.00011536,2]
[346773540,1735277090400,1182.909902,0.00012795,2]
[346773541,1735277090439,2945.68,0.00012247,2]
[346773542,1735277090550,3825.03,0.00012521,2]
[346773543,1735277090654,153.0,0.00011536,2]
[346773544,1735277090791,153.0,0.00011536,2]
[346773545,1735277090856,2945.68,0.00012521,2]
[346773546,1735277091030,153.0,0.00011536,2]
[346773547,1735277091075,2945.68,0.00012795,2]
[346773548,1735277091155,1079.76,0.00011973,2]
[346773549,1735277091274,3825.03,0.00012795,2]
[346773550,1735277091313,153.0,0.00011536,2]
[346773551,1735277091555,153.0,0.00011536,2]
[346773552,1735277091726,153.0,0.00011536,2]
[346773553,1735277091789,3359.42,0.00011974,2]
[346773554,1735277091830,1079.76,0.00012247,2]
[346773555,1735277091963,153.0,0.00011536,2]
[346773556,1735277092062,1079.76,0.00012521,2]
[346773557,1735277092434,1079.76,0.00012795,2]
[346773558,1735277092595,563.64,0.00011975,2]
[346773559,1735277093402,563.64,0.00012249,2]
[346773560,1735277093792,3359.42,0.00012248,2]
[346773561,1735277093871,563.64,0.00012523,2]
[346773562,1735277093944,563.64,0.00012797,2]
[346773563,1735277094026,3359.42,0.00012522,2]
[346773564,1735277094741,3359.42,0.00012796,2]
[346773565,1735277094799,500.0,0.00011973,2]
[346773566,1735277095070,500.0,0.00012247,2]
[346773567,1735277095378,500.0,0.00012521,2]
[346773568,1735277095501,500.0,0.00011974,2]
[346773569,1735277095607,500.0,0.00012795,2]
[346773570,1735277095760,500.0,0.00012248,2]
[346773571,1735277095841,675.63,0.00011973,2]
[346773572,1735277096051,500.0,0.00012522,2]
[346773573,1735277096294,675.63,0.00012247,2]
[346773574,1735277096383,500.0,0.00011973,2]
[346773575,1735277096432,500.0,0.00012796,2]
[346773576,1735277096489,675.63,0.00012521,2]
[346773577,1735277096555,500.0,0.00012247,2]
[346773578,1735277096617,503.62,0.00011973,2]
[346773579,1735277096660,675.63,0.00012795,2]
[346773580,1735277096723,353.34465515,0.00012521,2]
[346773581,1735277096822,503.62,0.00012247,2]
[346773582,1735277097087,503.62,0.00012521,2]
[346773583,1735277097327,503.62,0.00012795,2]
[346773584,1735277098198,153.0,0.00011535,2]
[346773585,1735277098266,153.0,0.00011535,2]
[346773586,1735277098365,153.0,0.00011535,2]
[346773587,1735277098667,153.0,0.00011535,2]
[346773588,1735277098863,153.0,0.00011535,2]
[346773589,1735277099070,153.0,0.00011535,2]
[346773590,1735277099285,153.0,0.00011535,2]
[346773591,1735277099492,153.0,0.00011535,2]
[346773592,1735277099534,670.2,0.00011973,2]
[346773593,1735277099715,153.0,0.00011535,2]
[346773594,1735277099823,670.2,0.00012247,2]
[346773595,1735277099937,153.0,0.00011535,2]
[346773596,1735277100083,670.2,0.00012521,2]
[346773597,1735277100131,500.0,0.00011973,2]
[346773598,1735277100348,670.2,0.00012795,2]
[346773599,1735277100417,500.0,0.00012247,2]
[346773600,1735277100686,500.0,0.00012521,2]
[346773601,1735277100883,500.0,0.00011973,2]